[Event "Krakow Championship-C 2022"]
[Site "Krakow"]
[Date "2022.06.26"]
[Round "2.2"]
[White "Buchowski, Adam"]
[Black "Lesniak, Wojciech"]
[Result "0-1"]
[ECO "A46"]
[WhiteElo "1666"]
[BlackElo "1368"]
[Annotator "NA RC"]
[PlyCount "72"]
[EventDate "2022.06.25"]
[EventType "swiss"]
[EventCountry "POL"]
[SourceTitle "playchess.com"]
[Source "ChessBase"]
[SourceQuality "1"]
[TimeControl "5400+30"]

1. d4 {[%emt 0:00:02]} e6 {[%emt 0:00:22]} 2. Nf3 {[%emt 0:00:07]} Nf6 {[%emt 0:00:19]} 3. Bg5 {[%emt 0:00:07]} c5 {[%emt 0:03:56]} 4. e3 {[%emt 0:00:04]} b6 {[%emt 0:05:51]} 5. Bd3 {[%emt 0:01:08]} Bb7 {[%emt 0:00:43]} 6. Nbd2 {[%emt 0:00:04]} Be7 {[%emt 0:01:20]} 7. O-O {[%emt 0:00:10]} O-O {[%emt 0:01:53]} 8. c3 {[%emt 0:00:08]} cxd4 {[%emt 0:02:43]} 9. exd4 {[%emt 0:00:17]} d6 {[%emt 0:01:04]} 10. Re1 {[%emt 0:00:41]} Nbd7 {[%emt 0:01:21]} 11. a4 {[%emt 0:00:26]} a6 {[%emt 0:01:31]} 12. h3 {[%emt 0:01:24]} Re8 {[%emt 0:02:34]} 13. Bf4 {[%emt 0:00:28]} Bf8 {[%emt 0:24:54]} 14. Nc4 {[%emt 0:01:14]} Qc7 {[%emt 0:03:45]} 15. Bh2 {[%emt 0:02:25]} Nd5 {[%emt 0:05:46]} 16. Ng5 {[%emt 0:06:38]} N7f6 {[%emt 0:02:05]} 17. Ne3 {[%emt 0:03:51]} Nxe3 {[%emt 0:04:59]} 18. Rxe3 {[%emt 0:00:14]} h6 {[%emt 0:01:02]} 19. Nf3 {[%emt 0:01:31]} Nd5 {[%emt 0:03:59]} 20. Re1 {[%emt 0:00:02]} Bc6 {[%emt 0:04:03]} 21. Bc2 {[%emt 0:08:06]} b5 {[%emt 0:00:54]} 22. axb5 {[%emt 0:00:14]} axb5 {[%emt 0:00:11]} 23. Qd3 {[%emt 0:00:34]} Nf6 {[%emt 0:01:51]} 24. Rxa8 {[%emt 0:02:59]} Rxa8 {[%emt 0:00:10]} 25. Bb1 {[%emt 0:00:08]} Qb7 {[%emt 0:01:43]} 26. Bg3 {[%emt 0:02:27]} Ra1 {[%emt 0:01:46]} 27. Qe3 {[%emt 0:00:46]} Be4 {[%emt 0:08:08]} 28. Bxe4 {[%emt 0:00:57]} Rxe1+ {[%emt 0:00:07]} 29. Qxe1 {[%emt 0:00:05]} Nxe4 {[%emt 0:00:21]} 30. Bf4 {[%emt 0:00:55]} d5 {[%emt 0:01:55]} 31. b4 {[%emt 0:04:16]} Qa7 {[%emt 0:01:55]} 32. Qc1 {[%emt 0:02:05]} Qa2 {[%emt 0:01:42]} 33. Bd2 {[%emt 0:00:07]} Be7 {[%emt 0:02:15]} 34. g3 {[%emt 0:03:17]} Bg5 {[%emt 0:02:12]} 35. Nxg5 {[%emt 0:00:32]} Qxd2 {[%emt 0:00:13]} 36. Qxd2 {[%emt 0:00:31]} Nxd2 {[%emt 0:00:08]} 0-1

[Event "Krakow Championship-C 2022"]
[Site "Krakow"]
[Date "2022.06.26"]
[Round "2.3"]
[White "Andriienko, Artom"]
[Black "Kwiatkowski, Jakub"]
[Result "1-0"]
[ECO "E65"]
[WhiteElo "1588"]
[BlackElo "1750"]
[Annotator "NA RC"]
[PlyCount "74"]
[EventDate "2022.06.25"]
[EventType "swiss"]
[EventCountry "POL"]
[SourceTitle "playchess.com"]
[Source "ChessBase"]
[SourceQuality "1"]
[TimeControl "5400+30"]

1. d4 Nf6 2. Nf3 g6 3. g3 Bg7 4. Bg2 d6 5. O-O O-O 6. c4 c5 7. Nc3 Nbd7 8. e3 Rb8 9. b3 b6 10. Bb2 Bb7 11. d5 Ne4 12. Qc2 Nxc3 13. Bxc3 Nf6 14. e4 e5 15. Nxe5 Re8 16. Nd3 Nxe4 17. Bxg7 Kxg7 18. Bxe4 Rxe4 19. Nxc5 Re7 20. Ne4 Rd7 21. Qc3+ f6 22. Ng5 Kg8 23. Ne6 Qe7 24. Rae1 Qf7 25. f4 f5 26. Ng5 Qg7 27. Qxg7+ Kxg7 28. Ne6+ Kf6 29. Nd4 b5 30. Re6+ Kg7 31. Nxb5 Bxd5 32. Rxd6 Rxd6 33. Nxd6 Rd8 34. Rd1 Rxd6 35. Rxd5 Rxd5 36. cxd5 Kf6 37. Kf2 Ke7 1-0

[Event "Krakow Championship-C 2022"]
[Site "Krakow"]
[Date "2022.06.26"]
[Round "2.4"]
[White "Olkuski, Tadeusz"]
[Black "Chmielewski, Miroslaw"]
[Result "0-1"]
[ECO "B00"]
[WhiteElo "1329"]
[BlackElo "1571"]
[Annotator "NA RC"]
[PlyCount "52"]
[EventDate "2022.06.25"]
[EventType "swiss"]
[EventCountry "POL"]
[SourceTitle "playchess.com"]
[Source "ChessBase"]
[SourceQuality "1"]
[TimeControl "5400+30"]

1. e4 {[%emt 0:01:25]} b6 {[%emt 0:00:42]} 2. d4 {[%emt 0:00:17]} Bb7 {[%emt 0:00:54]} 3. Nc3 {[%emt 0:00:32]} e6 {[%emt 0:00:47]} 4. Bd3 {[%emt 0:01:06]} g6 {[%emt 0:00:07]} 5. Be3 {[%emt 0:01:58]} Bg7 {[%emt 0:04:33]} 6. f3 {[%emt 0:09:41]} Nc6 {[%emt 0:08:26]} 7. Bc4 {[%emt 0:02:54]} Nge7 {[%emt 0:09:57]} 8. a3 {[%emt 0:02:15]} a6 {[%emt 0:04:40]} 9. Nge2 {[%emt 0:03:49]} b5 {[%emt 0:01:25]} 10. Ba2 {[%emt 0:18:50]} Nc8 {[%emt 0:00:09]} 11. Qd2 {[%emt 0:01:32]} Nb6 {[%emt 0:11:38]} 12. O-O {[%emt 0:05:00]} h6 {[%emt 0:03:30]} 13. Rad1 {[%emt 0:07:53]} d5 {[%emt 0:00:58]} 14. e5 {[%emt 0:06:25]} Ne7 {[%emt 0:02:20]} 15. g4 {[%emt 0:05:28]} Kd7 {[%emt 0:04:17]} 16. Nc1 {[%emt 0:01:22]} Qg8 {[%emt 0:01:19]} 17. Rf2 {[%emt 0:01:22]} Rf8 {[%emt 0:01:54]} 18. Rdf1 {[%emt 0:00:24]} Kc8 {[%emt 0:11:08]} 19. Nd3 {[%emt 0:04:47]} h5 {[%emt 0:04:58]} 20. Bg5 f6 {[%emt 0:00:08]} 21. exf6 {[%emt 0:02:30]} Bxf6 {[%emt 0:00:17]} 22. Bxf6 {[%emt 0:00:17]} Rxf6 {[%emt 0:03:46]} 23. g5 {[%emt 0:02:50]} Rf5 {[%emt 0:05:13]} 24. h4 {[%emt 0:00:19]} Nc4 {[%emt 0:00:19]} 25. Bxc4 {[%emt 0:01:43]} dxc4 {[%emt 0:03:26]} 26. Nc5 {[%emt 0:01:29]} Qf7 {[%emt 0:00:07]} 0-1

[Event "Krakow Championship-C 2022"]
[Site "Krakow"]
[Date "2022.06.26"]
[Round "2.5"]
[White "Wandor, Adam"]
[Black "Pozniak, Yunna"]
[Result "1-0"]
[ECO "C03"]
[WhiteElo "1456"]
[BlackElo "1288"]
[Annotator "NA RC"]
[PlyCount "79"]
[EventDate "2022.06.25"]
[EventType "swiss"]
[EventCountry "POL"]
[SourceTitle "playchess.com"]
[Source "ChessBase"]
[SourceQuality "1"]
[TimeControl "5400+30"]

1. e4 {[%emt 0:00:04]} e6 {[%emt 0:00:08]} 2. d4 {[%emt 0:00:07]} d5 {[%emt 0:00:05]} 3. Nd2 {[%emt 0:00:11]} Nc6 {[%emt 0:00:06]} 4. c3 {[%emt 0:01:05]} dxe4 {[%emt 0:01:04]} 5. Nxe4 {[%emt 0:00:07]} e5 {[%emt 0:06:12]} 6. d5 {[%emt 0:25:43]} Nce7 {[%emt 0:04:38]} 7. Bb5+ {[%emt 0:06:21]} Bd7 {[%emt 0:07:53]} 8. Qb3 {[%emt 0:07:23]} a6 {[%emt 0:08:28]} 9. Bxd7+ {[%emt 0:05:21]} Qxd7 {[%emt 0:00:47]} 10. Qxb7 {[%emt 0:12:25]} Qxd5 {[%emt 0:01:12]} 11. Qxd5 {[%emt 0:00:49]} Nxd5 {[%emt 0:00:10]} 12. Bd2 {[%emt 0:02:12]} Ngf6 {[%emt 0:02:03]} 13. Nxf6+ {[%emt 0:02:03]} Nxf6 {[%emt 0:00:18]} 14. O-O-O {[%emt 0:01:54]} Bc5 {[%emt 0:01:45]} 15. Nh3 {[%emt 0:04:05]} O-O {[%emt 0:00:52]} 16. Rhe1 {[%emt 0:03:40]} Rfe8 {[%emt 0:02:41]} 17. Bg5 {[%emt 0:02:26]} h6 {[%emt 0:05:21]} 18. Bxf6 {[%emt 0:00:15]} gxf6 {[%emt 0:00:11]} 19. Rd5 {[%emt 0:03:45]} Be7 {[%emt 0:04:34]} 20. f3 {[%emt 0:03:22]} Red8 {[%emt 0:01:07]} 21. Red1 {[%emt 0:00:27]} Rxd5 22. Rxd5 {[%emt 0:00:08]} Rd8 {[%emt 0:01:12]} 23. Rxd8+ {[%emt 0:00:11]} Bxd8 {[%emt 0:00:06]} 24. Nf2 {[%emt 0:00:30]} Be7 {[%emt 0:02:34]} 25. Nd3 {[%emt 0:05:10]} a5 {[%emt 0:06:47]} 26. b4 {[%emt 0:01:35]} axb4 {[%emt 0:03:24]} 27. cxb4 {[%emt 0:00:26]} c6 {[%emt 0:03:33]} 28. a4 {[%emt 0:01:05]} Bd8 {[%emt 0:01:50]} 29. Nc5 {[%emt 0:02:07]} Kf8 {[%emt 0:02:22]} 30. g4 {[%emt 0:04:47]} Ke7 {[%emt 0:01:27]} 31. Kd2 {[%emt 0:01:33]} Bb6 {[%emt 0:03:08]} 32. Kd3 {[%emt 0:00:55]} Bc7 {[%emt 0:11:48]} 33. Ke4 {[%emt 0:01:55]} Bd6 {[%emt 0:03:29]} 34. h3 {[%emt 0:01:19]} Kf8 {[%emt 0:03:40]} 35. Kf5 {[%emt 0:00:17]} Kg7 {[%emt 0:00:30]} 36. a5 {[%emt 0:00:19]} Bc7 {[%emt 0:00:46]} 37. Nd7 {[%emt 0:00:06]} e4 {[%emt 0:03:58]} 38. fxe4 {[%emt 0:00:05]} Bg3 {[%emt 0:00:19]} 39. a6 {[%emt 0:00:07]} Bf2 {[%emt 0:00:11]} 40. Nc5 {[%emt 0:00:06]} 1-0

[Event "Krakow Championship-C 2022"]
[Site "Krakow"]
[Date "2022.06.26"]
[Round "2.6"]
[White "Rabenda, Piotr"]
[Black "Pawlak, Emilia"]
[Result "0-1"]
[ECO "A57"]
[WhiteElo "1237"]
[BlackElo "1477"]
[Annotator "NA RC"]
[PlyCount "100"]
[EventDate "2022.06.25"]
[EventType "swiss"]
[EventCountry "POL"]
[SourceTitle "playchess.com"]
[Source "ChessBase"]
[SourceQuality "1"]
[TimeControl "5400+30"]

1. d4 {[%emt 0:00:04]} Nf6 {[%emt 0:00:05]} 2. c4 {[%emt 0:00:05]} c5 {[%emt 0:00:06]} 3. d5 {[%emt 0:00:05]} b5 {[%emt 0:00:03]} 4. cxb5 {[%emt 0:00:07]} a6 {[%emt 0:00:03]} 5. b6 {[%emt 0:00:08]} Qxb6 {[%emt 0:00:31]} 6. Nc3 {[%emt 0:00:17]} d6 {[%emt 0:00:22]} 7. e4 {[%emt 0:00:08]} g6 {[%emt 0:00:05]} 8. Nf3 {[%emt 0:00:18]} Bg7 {[%emt 0:00:07]} 9. Nd2 {[%emt 0:00:11]} O-O {[%emt 0:01:37]} 10. Nc4 {[%emt 0:00:11]} Qc7 {[%emt 0:00:29]} 11. f3 {[%emt 0:02:30]} a5 {[%emt 0:08:06]} 12. Be3 {[%emt 0:04:36]} Ba6 {[%emt 0:02:19]} 13. Qd2 {[%emt 0:02:49]} Nbd7 {[%emt 0:02:26]} 14. Bh6 {[%emt 0:06:41]} Rab8 {[%emt 0:05:14]} 15. O-O-O {[%emt 0:05:08]} Bxc4 {[%emt 0:02:52]} 16. Bxc4 {[%emt 0:01:40]} Ne5 {[%emt 0:01:00]} 17. Be2 {[%emt 0:04:48]} c4 {[%emt 0:04:01]} 18. Bxg7 {[%emt 0:02:01]} Kxg7 {[%emt 0:00:05]} 19. f4 {[%emt 0:01:59]} Nd3+ {[%emt 0:02:12]} 20. Bxd3 {[%emt 0:03:28]} cxd3 {[%emt 0:00:05]} 21. Qxd3 {[%emt 0:01:09]} a4 {[%emt 0:05:36]} 22. Kb1 {[%emt 0:07:59]} a3 {[%emt 0:05:56]} 23. b3 {[%emt 0:00:52]} Kg8 {[%emt 0:06:52]} 24. h3 {[%emt 0:05:12]} Qa5 {[%emt 0:03:02]} 25. Ka1 {[%emt 0:02:03]} Rb4 {[%emt 0:04:28]} 26. g4 {[%emt 0:05:18]} Nxe4 {[%emt 0:01:19]} 27. Nxe4 {[%emt 0:02:55]} Rxe4 {[%emt 0:00:06]} 28. f5 {[%emt 0:03:15]} Rc8 {[%emt 0:03:23]} 29. Rc1 {[%emt 0:00:54]} Rxc1+ {[%emt 0:01:21]} 30. Rxc1 {[%emt 0:00:02]} Re1 {[%emt 0:01:19]} 31. Kb1 {[%emt 0:05:11]} Rxc1+ {[%emt 0:00:45]} 32. Kxc1 {[%emt 0:00:07]} Qe1+ {[%emt 0:00:57]} 33. Qd1 {[%emt 0:04:51]} Qe3+ {[%emt 0:06:33]} 34. Kc2 {[%emt 0:02:46]} Qxh3 {[%emt 0:00:47]} 35. Qe2 {[%emt 0:02:18]} Qh4 {[%emt 0:02:21]} 36. fxg6 {[%emt 0:04:26]} hxg6 {[%emt 0:00:15]} 37. Kd3 {[%emt 0:02:29]} Qf6 {[%emt 0:02:26]} 38. Kc4 {[%emt 0:08:16]} Qb2 {[%emt 0:07:15]} 39. Kd3 {[%emt 0:02:34]} Qf6 {[%emt 0:00:33]} 40. Kc4 {[%emt 0:00:14]} Kf8 {[%emt 0:01:23]} 41. Kd3 {[%emt 0:02:18]} Qf4 {[%emt 0:01:52]} 42. Qg2 {[%emt 0:02:39]} Qc1 {[%emt 0:02:23]} 43. Qh2 {[%emt 0:01:33]} Qb2 {[%emt 0:03:00]} 44. Qxb2 {[%emt 0:00:26]} axb2 {[%emt 0:00:03]} 45. Kc2 {[%emt 0:00:06]} f5 {[%emt 0:00:16]} 46. gxf5 {[%emt 0:00:13]} g5 {[%emt 0:00:09]} 47. a4 {[%emt 0:01:03]} Ke8 {[%emt 0:00:05]} 48. a5 {[%emt 0:01:35]} Kd8 {[%emt 0:00:12]} 49. b4 {[%emt 0:00:13]} g4 {[%emt 0:00:35]} 50. b5 {[%emt 0:00:19]} Kc7 {[%emt 0:00:21]} 0-1

[Event "Krakow Championship-C 2022"]
[Site "Krakow"]
[Date "2022.06.26"]
[Round "2.7"]
[White "Christensen, Adam Stanczyk"]
[Black "Wegrzyn, Bartosz"]
[Result "0-1"]
[ECO "C01"]
[WhiteElo "1484"]
[BlackElo "1286"]
[Annotator "NA RC"]
[PlyCount "120"]
[EventDate "2022.06.25"]
[EventType "swiss"]
[EventCountry "POL"]
[SourceTitle "playchess.com"]
[Source "ChessBase"]
[SourceQuality "1"]
[TimeControl "5400+30"]

1. e4 {[%emt 0:00:02]} e6 {[%emt 0:00:05]} 2. d4 {[%emt 0:00:10]} d5 {[%emt 0:00:04]} 3. exd5 {[%emt 0:00:23]} exd5 {[%emt 0:00:08]} 4. Nf3 {[%emt 0:00:21]} Nf6 {[%emt 0:00:07]} 5. Bd3 {[%emt 0:00:41]} Bd6 {[%emt 0:00:08]} 6. O-O {[%emt 0:00:30]} O-O {[%emt 0:00:06]} 7. Bg5 {[%emt 0:00:33]} h6 {[%emt 0:00:11]} 8. Bh4 {[%emt 0:00:34]} c6 {[%emt 0:01:00]} 9. Ne5 {[%emt 0:03:54]} Nbd7 {[%emt 0:01:48]} 10. Re1 {[%emt 0:03:24]} Qc7 {[%emt 0:01:15]} 11. Qe2 {[%emt 0:03:28]} Re8 {[%emt 0:05:12]} 12. Bg3 {[%emt 0:05:21]} Ne4 {[%emt 0:12:02]} 13. Bxe4 {[%emt 0:06:07]} dxe4 {[%emt 0:00:11]} 14. Nc4 {[%emt 0:09:28]} Bxg3 {[%emt 0:01:14]} 15. hxg3 {[%emt 0:02:56]} c5 {[%emt 0:07:00]} 16. Nc3 {[%emt 0:05:38]} cxd4 {[%emt 0:04:48]} 17. Nxe4 {[%emt 0:00:37]} f5 {[%emt 0:09:12]} 18. Ncd6 {[%emt 0:04:11]} Re5 {[%emt 0:09:58]} 19. Qh5 {[%emt 0:04:31]} fxe4 {[%emt 0:11:19]} 20. Qf7+ {[%emt 0:01:08]} Kh7 {[%emt 0:00:27]} 21. Nf5 {[%emt 0:02:16]} Rxf5 {[%emt 0:04:03]} 22. Qxf5+ {[%emt 0:00:12]} Kh8 {[%emt 0:00:55]} 23. Qxe4 {[%emt 0:01:21]} Nf6 {[%emt 0:00:25]} 24. Qxd4 {[%emt 0:01:27]} Bf5 {[%emt 0:02:14]} 25. c3 {[%emt 0:01:16]} a6 {[%emt 0:05:10]} 26. Re5 {[%emt 0:03:54]} Bg6 {[%emt 0:02:07]} 27. Rae1 {[%emt 0:01:10]} Rd8 {[%emt 0:01:01]} 28. Re7 {[%emt 0:06:42]} Qxe7 {[%emt 0:00:56]} 29. Rxe7 {[%emt 0:00:10]} Rxd4 {[%emt 0:00:16]} 30. cxd4 {[%emt 0:00:30]} Be4 {[%emt 0:00:24]} 31. f3 {[%emt 0:02:24]} Bc6 {[%emt 0:00:09]} 32. Kf2 {[%emt 0:01:07]} Kg8 {[%emt 0:00:14]} 33. a3 {[%emt 0:01:22]} Nd5 {[%emt 0:00:20]} 34. Re5 {[%emt 0:00:38]} Kf7 {[%emt 0:00:44]} 35. Ke1 {[%emt 0:00:57]} Kf6 {[%emt 0:02:17]} 36. Kd2 {[%emt 0:00:53]} Nb6 {[%emt 0:01:24]} 37. Kc3 {[%emt 0:02:18]} Bb5 {[%emt 0:01:47]} 38. Rxb5 {[%emt 0:04:00]} axb5 39. Kb4 Ke6 {[%emt 0:01:56]} 40. Kxb5 {[%emt 0:01:25]} Nd7 {[%emt 0:02:29]} 41. Kc4 {[%emt 0:01:14]} Kd6 {[%emt 0:00:20]} 42. b4 {[%emt 0:02:31]} Nb6+ {[%emt 0:02:01]} 43. Kb5 {[%emt 0:00:30]} Nd5 {[%emt 0:00:29]} 44. Kc4 {[%emt 0:01:40]} Ne3+ {[%emt 0:02:42]} 45. Kb5 {[%emt 0:00:12]} Kc7 {[%emt 0:00:19]} 46. Kc5 {[%emt 0:01:08]} b6+ {[%emt 0:01:53]} 47. Kb5 {[%emt 0:00:21]} Nc2 {[%emt 0:00:12]} 48. Kc4 {[%emt 0:01:19]} Nxa3+ {[%emt 0:00:32]} 49. Kc3 {[%emt 0:01:23]} Kc6 {[%emt 0:01:20]} 50. Kb3 {[%emt 0:01:02]} Nb5 {[%emt 0:00:18]} 51. Kc4 {[%emt 0:00:16]} Nd6+ {[%emt 0:00:17]} 52. Kc3 {[%emt 0:00:58]} Kd5 {[%emt 0:00:08]} 53. Kd3 {[%emt 0:01:24]} Nf5 {[%emt 0:00:34]} 54. g4 {[%emt 0:00:12]} Nxd4 {[%emt 0:00:10]} 55. f4 {[%emt 0:00:44]} Ne6 {[%emt 0:01:38]} 56. g3 {[%emt 0:00:36]} b5 {[%emt 0:00:46]} 57. Ke3 {[%emt 0:02:26]} Nc7 {[%emt 0:00:25]} 58. Kd3 {[%emt 0:00:36]} Na6 {[%emt 0:00:22]} 59. Kc3 {[%emt 0:01:27]} Ke4 {[%emt 0:00:09]} 60. f5 {[%emt 0:00:46]} Nc7 0-1

[Event "Krakow Championship-C 2022"]
[Site "Krakow"]
[Date "2022.06.26"]
[Round "2.8"]
[White "Marzec, Tymon"]
[Black "Piddubna, Bozhena"]
[Result "1/2-1/2"]
[ECO "C55"]
[WhiteElo "1287"]
[BlackElo "1534"]
[Annotator "NA RC"]
[PlyCount "60"]
[EventDate "2022.06.25"]
[EventType "swiss"]
[EventCountry "POL"]
[SourceTitle "playchess.com"]
[Source "ChessBase"]
[SourceQuality "1"]
[TimeControl "5400+30"]

1. e4 {[%emt 0:00:03]} e5 {[%emt 0:00:07]} 2. Nf3 {[%emt 0:00:08]} Nc6 {[%emt 0:00:08]} 3. Bc4 {[%emt 0:00:09]} Nf6 {[%emt 0:00:13]} 4. d3 {[%emt 0:00:15]} Be7 {[%emt 0:00:32]} 5. O-O {[%emt 0:00:36]} O-O {[%emt 0:00:25]} 6. c3 {[%emt 0:01:16]} d5 {[%emt 0:03:06]} 7. exd5 {[%emt 0:00:34]} Nxd5 {[%emt 0:00:15]} 8. Re1 {[%emt 0:02:29]} Bf6 {[%emt 0:04:33]} 9. Nbd2 {[%emt 0:11:25]} Nf4 {[%emt 0:04:17]} 10. Ne4 {[%emt 0:01:45]} Bf5 {[%emt 0:01:18]} 11. Bxf4 {[%emt 0:05:19]} exf4 {[%emt 0:00:18]} 12. Nxf6+ {[%emt 0:00:05]} Qxf6 {[%emt 0:00:15]} 13. d4 {[%emt 0:00:24]} Rad8 {[%emt 0:01:49]} 14. Qd2 {[%emt 0:02:49]} Bg4 {[%emt 0:01:42]} 15. Be2 {[%emt 0:05:03]} Rfe8 {[%emt 0:03:12]} 16. Rad1 {[%emt 0:01:36]} h6 {[%emt 0:05:15]} 17. Qd3 {[%emt 0:06:45]} a6 {[%emt 0:06:17]} 18. Bf1 {[%emt 0:08:08]} Qd6 {[%emt 0:21:09]} 19. Rxe8+ {[%emt 0:21:02]} Rxe8 {[%emt 0:00:13]} 20. Re1 {[%emt 0:00:04]} Rxe1 {[%emt 0:01:13]} 21. Nxe1 {[%emt 0:00:05]} Qe6 {[%emt 0:00:53]} 22. Qb1 {[%emt 0:00:04]} Ne7 {[%emt 0:04:41]} 23. Bd3 {[%emt 0:04:59]} Bf5 {[%emt 0:03:52]} 24. Bxf5 {[%emt 0:03:39]} Nxf5 {[%emt 0:00:23]} 25. h3 {[%emt 0:01:15]} Nh4 {[%emt 0:00:48]} 26. a3 {[%emt 0:02:30]} Qe2 {[%emt 0:02:06]} 27. Nd3 {[%emt 0:04:08]} Qe4 {[%emt 0:08:46]} 28. Qf1 {[%emt 0:00:04]} f3 {[%emt 0:05:33]} 29. g3 {[%emt 0:01:55]} Ng2 {[%emt 0:02:03]} 30. Ne5 {[%emt 0:01:52]} Qxd4 1/2-1/2

[Event "Krakow Championship-C 2022"]
[Site "Krakow"]
[Date "2022.06.26"]
[Round "3.1"]
[White "Khimichenko, Dmytro"]
[Black "Andriienko, Artom"]
[Result "0-1"]
[ECO "B92"]
[WhiteElo "1427"]
[BlackElo "1588"]
[Annotator "NA RC"]
[PlyCount "124"]
[EventDate "2022.06.25"]
[EventType "swiss"]
[EventCountry "POL"]
[SourceTitle "playchess.com"]
[Source "ChessBase"]
[SourceQuality "1"]
[TimeControl "5400+30"]

1. e4 {[%emt 0:00:03]} c5 {[%emt 0:00:09]} 2. Nf3 {[%emt 0:00:15]} d6 {[%emt 0:00:08]} 3. d4 {[%emt 0:00:04]} cxd4 {[%emt 0:00:05]} 4. Nxd4 {[%emt 0:00:04]} Nf6 {[%emt 0:00:05]} 5. Nc3 {[%emt 0:00:05]} a6 {[%emt 0:00:07]} 6. Be2 {[%emt 0:00:27]} e5 {[%emt 0:00:10]} 7. Nb3 {[%emt 0:00:25]} Be6 {[%emt 0:00:07]} 8. O-O {[%emt 0:00:18]} Nbd7 {[%emt 0:00:38]} 9. Be3 {[%emt 0:00:17]} b5 {[%emt 0:00:26]} 10. a3 {[%emt 0:01:36]} Rc8 {[%emt 0:01:11]} 11. f3 {[%emt 0:00:54]} Be7 {[%emt 0:00:31]} 12. Qd2 {[%emt 0:04:47]} O-O {[%emt 0:03:09]} 13. Rad1 {[%emt 0:00:26]} Qc7 {[%emt 0:02:34]} 14. Kh1 {[%emt 0:03:32]} Rfd8 {[%emt 0:04:23]} 15. g4 {[%emt 0:01:17]} Nc5 {[%emt 0:20:23]} 16. Nxc5 {[%emt 0:04:11]} dxc5 {[%emt 0:01:12]} 17. Qc1 {[%emt 0:00:46]} Qc6 {[%emt 0:10:23]} 18. Rxd8+ {[%emt 0:02:22]} Rxd8 {[%emt 0:00:08]} 19. g5 {[%emt 0:00:16]} Ne8 {[%emt 0:13:26]} 20. Rd1 {[%emt 0:01:32]} b4 {[%emt 0:00:48]} 21. Rxd8 {[%emt 0:01:20]} Bxd8 {[%emt 0:00:29]} 22. Nd1 {[%emt 0:00:34]} a5 {[%emt 0:04:22]} 23. Qd2 {[%emt 0:02:24]} Be7 {[%emt 0:00:13]} 24. Nf2 {[%emt 0:02:41]} c4 {[%emt 0:01:05]} 25. axb4 {[%emt 0:01:20]} axb4 {[%emt 0:00:07]} 26. c3 {[%emt 0:00:58]} b3 {[%emt 0:04:31]} 27. Kg2 {[%emt 0:02:05]} Nd6 {[%emt 0:01:26]} 28. h4 {[%emt 0:02:09]} Nb7 {[%emt 0:07:10]} 29. Qd1 {[%emt 0:05:28]} Qa4 {[%emt 0:02:16]} 30. Qc1 {[%emt 0:02:57]} Nc5 {[%emt 0:01:19]} 31. Bf1 {[%emt 0:02:09]} Qa2 {[%emt 0:00:50]} 32. Kg3 {[%emt 0:01:16]} Kf8 {[%emt 0:04:51]} 33. Bh3 {[%emt 0:02:31]} Bxh3 {[%emt 0:02:33]} 34. Kxh3 {[%emt 0:00:52]} Qa4 {[%emt 0:01:08]} 35. Qd1 {[%emt 0:00:51]} Qd7+ {[%emt 0:02:27]} 36. Qxd7 {[%emt 0:00:08]} Nxd7 {[%emt 0:00:04]} 37. Kg2 {[%emt 0:02:00]} Nc5 {[%emt 0:00:23]} 38. Kf1 {[%emt 0:00:32]} f6 {[%emt 0:01:05]} 39. gxf6 {[%emt 0:01:14]} gxf6 {[%emt 0:00:04]} 40. h5 {[%emt 0:01:32]} Kf7 {[%emt 0:00:51]} 41. Ke2 {[%emt 0:00:52]} Ke6 {[%emt 0:00:33]} 42. Kd2 {[%emt 0:01:45]} Na4 {[%emt 0:02:52]} 43. Nd1 {[%emt 0:00:36]} f5 {[%emt 0:00:27]} 44. Kc1 {[%emt 0:03:55]} f4 {[%emt 0:00:45]} 45. Ba7 {[%emt 0:01:07]} Bh4 {[%emt 0:01:53]} 46. Kd2 {[%emt 0:00:41]} Be7 {[%emt 0:01:14]} 47. Kc1 {[%emt 0:00:46]} Bc5 {[%emt 0:00:27]} 48. Bxc5 {[%emt 0:01:37]} Nxc5 {[%emt 0:00:04]} 49. Nf2 {[%emt 0:00:46]} Nd7 {[%emt 0:00:07]} 50. Kd2 {[%emt 0:01:36]} Kf6 {[%emt 0:00:08]} 51. Ng4+ {[%emt 0:00:20]} Kg5 {[%emt 0:00:04]} 52. h6 {[%emt 0:00:07]} Kh4 {[%emt 0:00:06]} 53. Ke1 {[%emt 0:05:48]} Kg3 {[%emt 0:00:09]} 54. Ke2 {[%emt 0:00:22]} Kg2 {[%emt 0:00:05]} 55. Nf2 {[%emt 0:00:33]} Nf6 {[%emt 0:00:05]} 56. Ke1 {[%emt 0:00:48]} Kxf3 {[%emt 0:00:08]} 57. Nh3 {[%emt 0:00:08]} Nxe4 {[%emt 0:00:04]} 58. Kf1 {[%emt 0:00:11]} Kg3 {[%emt 0:00:11]} 59. Ng1 {[%emt 0:00:02]} f3 {[%emt 0:00:05]} 60. Ne2+ {[%emt 0:01:05]} fxe2+ {[%emt 0:00:07]} 61. Ke1 {[%emt 0:00:06]} Nxc3 {[%emt 0:00:25]} 62. Kd2 {[%emt 0:00:25]} Kf2 {[%emt 0:00:15]} 0-1